Cogmind - Beta 15 @@@ ROGUE MODE // 2025.06.21 @ 01:09:19 Player: SALT Result: Destroyed by H-66 Slayer with Heavy Assault Rifle Performance ------------- Evolutions (5) 2500 Regions Visited (6) 1200 Robots Destroyed (41) 205 Value Destroyed (1336) 1336 Prototype IDs (3) 60 Alien Tech Used (0) 0 Bonus (-9) -9 TOTAL SCORE: 5292 Bonus ------- Friendly Fire -9 Cogmind --------- Core Integrity 0/1000 Matter 300/300 Energy 900/900 System Corruption 9% Temperature Cool (48) Movement Core (200) Ox3 Location -5/Factory Parts ------- > --- POWER (2) -------- Hybrid Fission Core > --- PROPULSION (4) --- Armored Medium Treads > --- UTILITY (7) ------ Improved Coolant Injector Enhanced Optical Array Advanced Terrain Scan Processor Advanced Targeting Computer Advanced Targeting Computer Improved Weapon Cycler > --- WEAPON (4) ------- (None) > --- INVENTORY (5) ---- Advanced Heat Sink Advanced Signal Interpreter Targeting Computer Plasma Cutter Peak State ------------ > --- POWER ------------ Light Angular Momentum Engine Hybrid Fission Core > --- PROPULSION ------- Armored Medium Treads Carbon-fiber Leg Flexi-carbon Leg Flexi-carbon Leg > --- UTILITY ---------- Improved Coolant Injector Enhanced Optical Array Advanced Terrain Scan Processor Advanced Targeting Computer Advanced Targeting Computer Improved Weapon Cycler Phase Shifter > --- WEAPON ----------- Heavy Laser Heavy Phase Cannon KE Penetrator > --- INVENTORY -------- Advanced Heat Sink Advanced Signal Interpreter Targeting Computer Plasma Cutter [Rating: 78] Favorites ----------- Power Ion Engine Engine Ion Engine Power Core Light Nuclear Core Propulsion Armored Wheel Treads Light Treads Leg Aluminum Leg Wheel Armored Wheel Utility Small Storage Unit Device Improved Heat Sink Storage Small Storage Unit Processor Advanced Targeting Computer Protection Hardened Heavy Armor Plating Weapon Light Assault Rifle Energy Gun High-powered Field Laser Energy Cannon Advanced Plasma Cannon Ballistic Gun Light Assault Rifle Ballistic Cannon Flak Cannon Impact Weapon Great Maul Build | -11 -10 -10 -8 -7 -6 -5 ------- Run | Yrd Mat Sub Mat Fac Fac Fac Slots Evolved 10 | . . . 4 2 2 2 Power 1 | . . . . . 1 . Propulsion 2 | . . . . 1 . 1 Utility 5 | . . . 3 1 1 . Weapon 2 | . . . 1 . . 1 Parts Attached 67 | 6 7 1 18 3 2 30 Power 10 | 1 . 1 2 . . 6 Engine 4 | 1 . 1 1 . . 1 Core 6 | . . . 1 . . 5 Reactor . | . . . . . . . Propulsion 19 | 3 5 . 2 1 . 8 Treads 5 | 2 . . . . . 3 Leg 8 | 1 3 . . . . 4 Wheel 6 | . 2 . 2 1 . 1 Hover . | . . . . . . . Flight . | . . . . . . . Utility 22 | 1 1 . 7 2 2 9 Device 12 | . 1 . 4 . 1 6 Storage 1 | 1 . . . . . . Processor 7 | . . . 2 1 1 3 Hackware . | . . . . . . . Protection 2 | . . . 1 1 . . Artifact . | . . . . . . . Weapon 16 | 1 1 . 7 . . 7 Energy Gun 6 | . . . 2 . . 4 Energy Cannon 2 | . . . . . . 2 Ballistic Gun 5 | 1 1 . 2 . . 1 Ballistic Cannon 1 | . . . 1 . . . Launcher . | . . . . . . . Special Weapon . | . . . . . . . Impact Weapon 2 | . . . 2 . . . Slashing Weapon . | . . . . . . . Piercing Weapon . | . . . . . . . Special Melee Weapon . | . . . . . . . Unidentified Prototypes 3 | . . . 2 . . 1 Parts Lost 32 | . . 1 10 1 . 20 Power 5 | . . 1 1 . . 3 Propulsion 9 | . . . 2 . . 7 Utility 10 | . . . 4 1 . 5 Weapon 8 | . . . 3 . . 5 Highest Loss Streak 14 | . . 1 6 1 . 14 To Critical Strikes 2 | . . . . . . 2 Average Backups 6 | 2 5 7 6 6 6 6 Power . | . 1 . . 1 . . Propulsion 2 | 1 3 4 3 3 3 . Utility 2 | . . 1 . 1 2 4 Weapon . | 1 1 1 . . . . Tool/Special . | . . . . . . . Unused Backups 8 | . 2 . . . . 6 Power . | . . . . . . . Propulsion 3 | . 2 . . . . 1 Utility 4 | . . . . . . 4 Weapon . | . . . . . . . Tool/Special 1 | . . . . . . 1 Average Slot Usage (%) 81 | . 95 100 79 88 92 76 Engine 4 | . 14 14 4 . 6 1 Core 4 | . . . 3 7 6 6 Treads 3 | . 5 . . . . 5 Leg 2 | . 15 . . . . 1 Wheel 12 | . 5 28 17 20 20 8 Device 13 | . 11 14 19 21 17 10 Storage 6 | . 14 14 9 7 6 3 Processor 8 | . . . 2 7 8 15 Protection 2 | . . . 3 . 6 3 Energy Gun 2 | . . . 1 . . 4 Energy Cannon 1 | . . . . . . 2 Ballistic Gun 8 | . 27 28 5 7 6 3 Impact Weapon 5 | . . . 10 15 13 3 Peak Build Rating 78 | 5 12 12 23 29 36 78 Average Rating 30 | 4 9 11 17 22 34 48 On Entrance 16 | . 5 12 12 20 29 36 Naked Turns . | . . . . . . . Heaviest Build 74 | 11 13 13 23 39 48 74 Greatest Support 55 | 40 40 24 24 40 40 55 Greatest Overweight (x) 6 | 1 1 . 1 . 1 6 Average Overweight (x) . | . . . . . 1 1 Largest Inventory Capacity 8 | 8 8 8 8 8 8 8 Average Capacity 7 | 7 8 8 8 8 8 7 Most Carried 8 | 6 8 8 8 8 8 8 Average Carried 6 | 2 5 7 6 6 6 6 Final Capacity 8 | 8 8 8 8 8 8 5 Final Carried 8 | 6 8 7 6 7 8 4 Class Distribution -------------------- 38% | Mutant 33% | Scavenger-Mutant 12% | Scavenger-Skirmisher 10% | Gunner 3% | Scavenger-Gunner Dominant Class ---------------- Mutant | -10/Materials Mutant | -10/Subcaves Scavenger-Mutant | -8/Materials Scavenger-Mutant | -7/Factory Scavenger-Mutant | -6/Factory Scavenger-Mutant | -5/Factory Resources | -11 -10 -10 -8 -7 -6 -5 ----------- Run | Yrd Mat Sub Mat Fac Fac Fac Matter Collected 1072 | 217 95 39 293 . . 428 Remotely 81 | . . . 81 . . . Salvage Created 1860 | . 128 13 633 . . 1086 Parts 62 | . 7 2 15 . . 38 Haulers Intercepted . | . . . . . . . Recyclers Shooed 8 | . 2 . 1 . . 5 Parts Field Recycled . | . . . . . . . Retrieved Matter . | . . . . . . . Parts Self-Destructed 8 | . . 8 . . . . Prevented . | . . . . . . . Kills | -11 -10 -10 -8 -7 -6 -5 ------- Run | Yrd Mat Sub Mat Fac Fac Fac Combat Hostiles Destroyed 28 | . 1 1 13 . . 13 Melee 4 | . . . 3 . . 1 Guns 12 | . 1 1 1 . . 9 Cannons 4 | . . . 1 . . 3 Classes Destroyed 11 | . 2 1 5 . . 3 Worker 3 | . . . 2 . . 1 Builder 3 | . . . 2 . . 1 Tunneler 1 | . . . 1 . . . Recycler 5 | . 1 . 1 . . 3 Watcher 1 | . . . . . . 1 Swarmer 8 | . . 1 3 . . 4 Grunt 12 | . 1 . 8 . . 3 Brawler 1 | . . . 1 . . . Sentry 2 | . . . 1 . . 1 Hunter 3 | . . . . . . 3 Programmer 2 | . . . . . . 2 Best Kill Streak 6 | . 1 1 6 . . 4 Combat Bots Only 5 | . 1 1 5 . . 2 Max Kills in Single Turn 3 | . 1 1 1 . . 3 Gunslinging . | . . . . . . . Exploded . | . . . . . . . Melee 1 | . . . 1 . . 1 Uniques/NPCs Destroyed . | . . . . . . . Combat | -11 -10 -10 -8 -7 -6 -5 -------- Run | Yrd Mat Sub Mat Fac Fac Fac Hostile Shots Fired 546 | . 4 33 131 9 . 369 Missed 165 | . 2 12 31 5 . 115 Hits 381 | . 2 21 100 4 . 254 Melee 5 | . . . 4 . . 1 Projectile 376 | . 2 21 96 4 . 253 Critical Strikes 17 | . . . 4 . . 13 Part Disruptions 1 | . . . . . . 1 Damage Taken 5824 | . 28 188 1329 34 . 4245 Core 1261 | . . 32 223 . . 1006 Absorbed by Shields 154 | . . . 103 . . 51 Core Remaining (%) 89 | 100 . 87 59 100 100 . Volleys Fired 103 | . 8 6 23 . 1 65 Largest 3 | . 2 2 3 . 1 3 Hottest 192 | . 40 40 112 . 20 192 Shots Fired 194 | . 16 12 60 . 1 105 Gun 153 | . 16 12 44 . 1 80 Cannon 41 | . . . 16 . . 25 Launcher . | . . . . . . . Special . | . . . . . . . Kinetic 107 | . 16 12 38 . 1 40 Thermal 84 | . . . 22 . . 62 Explosive . | . . . . . . . Electromagnetic 3 | . . . . . . 3 Robot Hit Streak 11 | . 8 4 8 . . 11 Robot Miss Streak 6 | . 1 3 6 . . 3 Penetration Max 1 | . . . . . . 1 Secondary Targets . | . . . . . . . Shots Hit Robots 158 | . 14 7 66 . . 71 Core Hits 68 | . 6 2 21 . . 39 Critical Kills 3 | . . . 1 . . 2 Critical Parts Destroyed 7 | . . . 6 . . 1 Critical Strikes 12 | . . . 7 . . 5 Burn 2 | . . . . . . 2 Destroy 1 | . . . . . . 1 Smash 9 | . . . 7 . . 2 Melee Attacks 44 | . . . 36 . 1 7 Impact 44 | . . . 36 . 1 7 Slashing . | . . . . . . . Piercing . | . . . . . . . Sneak Attacks 9 | . . . 7 . . 2 Combat Hostiles . | . . . . . . . Follow-up Attacks 6 | . . . 5 . . 1 Damage Inflicted 4021 | . 124 61 1774 . . 2062 Guns 1497 | . 118 61 348 . . 970 Cannons 707 | . . . 190 . . 517 Explosions 213 | . . . . . . 213 Melee 1523 | . . . 1232 . . 291 Ramming 81 | . 6 . 4 . . 71 Kinetic 787 | . 118 61 304 . . 304 Thermal 1389 | . . . 234 . . 1155 Explosive . | . . . . . . . Electromagnetic 241 | . . . . . . 241 Impact 1523 | . . . 1232 . . 291 Slashing . | . . . . . . . Piercing . | . . . . . . . Highest Corruption 14 | . . . 3 . . 14 Average Corruption 6 | . . . 3 . . 7 Corruption Purged 5 | . . . . . . 5 Corruption Blocked . | . . . . . . . Effects 31 | . . . 8 . . 23 Message Errors 10 | . . . 2 . . 8 Matter Fused 8 | . . . 2 . . 6 Heat Flow Errors 3 | . . . . . . 3 Energy Discharges 1 | . . . 1 . . . Parts Rejected 1 | . . . 1 . . . Data Loss (minor) 1 | . . . . . . 1 Data Loss (major) 2 | . . . 2 . . . Alerts 1 | . . . . . . 1 Misdirections 4 | . . . . . . 4 Overload Shots . | . . . . . . . Overflow Damage 771 | . . . 599 . . 172 Projectiles 4 | . . . . . . 4 Explosions . | . . . . . . . Melee 767 | . . . 599 . . 168 Knockbacks 17 | . . . 15 . . 2 Impact 7 | . . . 5 . . 2 Kinetic 10 | . . . 10 . . . Secondary . | . . . . . . . Self-Inflicted Damage 40 | . 2 . 2 . . 36 Shots 1 | . . . . . . 1 Rammed 19 | . 4 . 2 . . 13 Targets Rammed 21 | . 4 . 2 . . 15 Kicked 2 | . . . . . . 2 Crushed . | . . . . . . . Highest Temperature 360 | . 9 . 10 . 5 360 Average Temperature 127 | . 9 . 2 . 5 133 Received Heat Transfer 1362 | . 15 114 615 12 . 606 Effects 6 | . . . . . . 6 Shutdowns 1 | . . . . . . 1 Energy Bleed 1 | . . . . . . 1 Interference 3 | . . . . . . 3 Short Circuit 1 | . . . . . . 1 Siege Activations . | . . . . . . . Martial Activations . | . . . . . . . Shielding Activations . | . . . . . . . Robots Disrupted 1 | . . . . . . 1 Combat Hostiles 1 | . . . . . . 1 Robots Corrupted 12 | . . . 10 . . 2 Combat Hostiles 8 | . . . 8 . . . Parts Fried 24 | . . . 16 . . 8 Impact Corruptions 28 | . . . 22 . . 6 Robots Melted . | . . . . . . . Combat Hostiles . | . . . . . . . Parts Melted 3 | . . . . . . 3 Heat Transferred 2196 | . . . 481 . . 1715 Parts Sabotaged 4 | . . . . . . 4 Parts Stolen . | . . . . . . . Parts Stripped . | . . . . . . . Power Chain Reactions 1 | . . . . . . 1 Alert | -11 -10 -10 -8 -7 -6 -5 ------- Run | Yrd Mat Sub Mat Fac Fac Fac Maximum Alert Level 1 | . . . 1 . . 1 Low Security (%) 91 | 100 100 . 87 100 100 89 Level 1 8 | . . . 12 . . 10 Level 2 . | . . . . . . . Level 3 . | . . . . . . . Level 4 . | . . . . . . . Level 5 . | . . . . . . . High Security . | . . . . . . . Max Security . | . . . . . . . Peak Influence 329 | . 30 . 230 93 21 329 Initial 93 | . . . 26 93 21 . Average 63 | . 4 . 85 74 12 74 Influence Increases 1359 | . 63 80 476 . 1 739 Destroy 0b10 Robot/C 560 | . 20 20 260 . . 260 Destroy 0b10 Robot/NC 65 | . 5 . 30 . . 30 Destroy Leader 122 | . 10 . 50 . . 62 Successful Hack 48 | . 28 . . . . 20 Disable Machine 75 | . . . . . . 75 Destroy Structure 24 | . . . 1 . 1 22 Lose Combat Pursuer 465 | . . 60 135 . . 270 Influence Decreases 1082 | . 63 30 320 163 42 464 Entered New Map 161 | . . . 24 113 22 2 Time Decay 621 | . 63 20 216 40 20 262 Lost Part 300 | . . 10 80 10 . 200 Squads Dispatched 9 | . 1 . 2 . 1 5 Investigation . | . . . . . . . Extermination 2 | . . . . . . 2 Reinforcement 6 | . 1 . 2 . 1 2 Assault . | . . . . . . . Garrison 1 | . . . . . . 1 Intercept . | . . . . . . . Searches Triggered . | . . . . . . . Construction Impeded . | . . . . . . . Haulers Reinforced 1 | . . . . . . 1 Active Scanning Responses . | . . . . . . . Cargo Convoy Interrupts 1 | . . . . . . 1 Stealth | -11 -10 -10 -8 -7 -6 -5 --------- Run | Yrd Mat Sub Mat Fac Fac Fac Distress Signals 7 | . . . 6 . . 1 Communications Jammed 15 | . . . . . . 15 Distress Signals 15 | . . . . . . 15 Times Spotted 99 | . 5 8 33 1 1 51 Peak Tracking Total 11 | . 2 6 9 1 1 11 Tactical Retreats 16 | . . 2 6 . . 8 Traps | -11 -10 -10 -8 -7 -6 -5 ------- Run | Yrd Mat Sub Mat Fac Fac Fac Traps Triggered 1 | . . . . . . 1 Indirectly . | . . . . . . . Trap Hack Attempts . | . . . . . . . Triggered . | . . . . . . . Disarmed 6 | . . . . . . 6 Reprogrammed . | . . . . . . . Reused . | . . . . . . . Traps Extracted . | . . . . . . . Installed . | . . . . . . . Triggered . | . . . . . . . Machines | -11 -10 -10 -8 -7 -6 -5 ---------- Run | Yrd Mat Sub Mat Fac Fac Fac Machines Disabled 5 | . . . . . . 5 Max in Single Turn 5 | . . . . . . 5 Machines Repaired . | . . . . . . . Machines Dismantled . | . . . . . . . Machines Sabotaged . | . . . . . . . Overloaded Fab Kills . | . . . . . . . Hacking | -11 -10 -10 -8 -7 -6 -5 --------- Run | Yrd Mat Sub Mat Fac Fac Fac Machines Accessed 9 | . 2 . 1 1 . 5 Terminals 6 | . 2 . 1 . . 3 Fabricators 1 | . . . . . . 1 Repair Stations 1 | . . . . . . 1 Recycling Units 1 | . . . . 1 . . Scanalyzers . | . . . . . . . Garrison Access . | . . . . . . . Total Hacks 20 | . 5 . 2 1 . 12 Successful 7 | . 2 . . 1 . 4 Failed 13 | . 3 . 2 . . 8 Catastrophic 3 | . 1 . . . . 2 Database Lockouts . | . . . . . . . Manual 2 | . . . . . . 2 Terminals 17 | . 5 . 2 . . 10 Fabricators 1 | . . . . . . 1 Repair Stations 1 | . . . . . . 1 Recycling Units 1 | . . . . 1 . . Scanalyzers . | . . . . . . . Garrison Access . | . . . . . . . Terminal Hacks 4 | . 2 . . . . 2 Robot Analysis 1 | . 1 . . . . . Alert Level 1 | . . . . . . 1 Disarm Traps 1 | . . . . . . 1 Zone Layout 1 | . 1 . . . . . Fabricator Hacks 1 | . . . . . . 1 Build 1 | . . . . . . 1 Repair Station Hacks . | . . . . . . . Recycling Unit Hacks 1 | . . . . 1 . . Report Inventory 1 | . . . . 1 . . Scanalyzer . | . . . . . . . Garrison Access Hacks . | . . . . . . . Unauthorized Hacks 1 | . . . . . . 1 Terminals 1 | . . . . . . 1 Assimilate 1 | . . . . . . 1 Fabricators . | . . . . . . . Repair Stations . | . . . . . . . Recycling Units . | . . . . . . . Scanalyzers . | . . . . . . . Garrison Access . | . . . . . . . Data Cores Recovered . | . . . . . . . Used . | . . . . . . . Hacking Detections 9 | . 2 . 1 1 . 5 Full Trace Events . | . . . . . . . Feedback Events . | . . . . . . . Feedback Blocked . | . . . . . . . Robot Schematics Acquired . | . . . . . . . Robots Built 1 | . . . . . . 1 Authchips . | . . . . . . . Time 40 | . . . . . . 40 Total Robot Build Rating 1 | . . . . . . 1 Part Schematics Acquired . | . . . . . . . Parts Built . | . . . . . . . Authchips . | . . . . . . . Time . | . . . . . . . Total Part Build Rating . | . . . . . . . Parts Repaired . | . . . . . . . Time . | . . . . . . . Parts Recycled . | . . . . . . . Recycled Matter . | . . . . . . . Retrieved Matter . | . . . . . . . Retrieved Components . | . . . . . . . Parts Scanalyzed . | . . . . . . . Part Schematics Acquired . | . . . . . . . Parts Damaged . | . . . . . . . Bothacking | -11 -10 -10 -8 -7 -6 -5 ------------ Run | Yrd Mat Sub Mat Fac Fac Fac Used RIF Installer . | . . . . . . . Robots Hacked . | . . . . . . . Non-combat . | . . . . . . . Combat . | . . . . . . . Robot Hacks Applied . | . . . . . . . Relay Couplers Released . | . . . . . . . Fabnet Peak Effective % . | . . . . . . . Robots Rewired . | . . . . . . . Allies Hacked . | . . . . . . . Hacks Repelled . | . . . . . . . Allies | -11 -10 -10 -8 -7 -6 -5 -------- Run | Yrd Mat Sub Mat Fac Fac Fac Total Allies 1 | . . . . . . 1 Largest Group 1 | . . . . . . 1 Highest-Rated Group 12 | . . . . . . 12 Highest-Rated Ally 12 | . . . . . . 12 Total Orders 2 | . . . . . . 2 PICKUP 1 | . . . . . . 1 COLLECT 1 | . . . . . . 1 Ally Attacks . | . . . . . . . Total Damage . | . . . . . . . Kills . | . . . . . . . Allies Corrupted . | . . . . . . . Allies Melted . | . . . . . . . Intel | -11 -10 -10 -8 -7 -6 -5 ------- Run | Yrd Mat Sub Mat Fac Fac Fac Active Infowar (turns) 1228 | . . . 49 83 52 1044 Optics 317 | . . . . . . 317 Terrain 913 | . . . 49 83 52 729 Jamming 391 | . . . . . . 391 Robot Analysis Total 1 | . 1 . . . . . Derelict Logs Recovered . | . . . . . . . Drone Launches . | . . . . . . . Drone Recoveries . | . . . . . . . Exploration | -11 -10 -10 -8 -7 -6 -5 ------------- Run | Yrd Mat Sub Mat Fac Fac Fac Turns Passed 2223 | 123 246 95 580 83 52 1044 Spaces Moved 1499 | 73 166 72 399 83 38 668 Core 151 | 7 . . . . . 144 Treads 108 | 59 21 . . . . 28 Legs 197 | 7 106 . . . . 84 Wheels 1043 | . 39 72 399 83 38 412 Hover . | . . . . . . . Flight . | . . . . . . . Fastest Speed 50 | 50 90 90 90 90 108 50 Average Speed 107 | 149 122 90 90 92 108 112 Slowest Speed 350 | 160 190 90 105 93 108 350 Overloaded Moves . | . . . . . . . Propulsion Burnouts . | . . . . . . . Robots Hopped . | . . . . . . . Potential Cave-ins . | . . . . . . . Cave-ins Triggered . | . . . . . . . Exploration Rate (%) 15 | 5 39 8 33 2 2 19 Regions Visited 6 Branch Regions 1 Pre-discovered Areas . | . . . . . . . Known Exits Taken . | . . . . . . . Unknown Exits Taken 6 | 1 1 1 1 1 1 . Scrap Searched . | . . . . . . . Spaces Dug 4 | . . . 1 . 1 2 Terrain Destroyed 13 | . . . 1 . 1 11 Melee 2 | . . . 1 . 1 . Projectile 11 | . . . . . . 11 AOE . | . . . . . . . Terrain Rammed . | . . . . . . . Walls Destroyed . | . . . . . . . Machines Disabled . | . . . . . . . Actions | -11 -10 -10 -8 -7 -6 -5 --------- Run | Yrd Mat Sub Mat Fac Fac Fac Total 1862 | 84 196 92 511 88 46 845 Wait 68 | . . 14 29 . . 25 Move 1493 | 72 165 71 398 82 37 668 Hop . | . . . . . . . Pick Up 32 | 6 5 . 6 2 3 10 Fast Attach 39 | 5 5 . 10 2 1 16 Attach 28 | . 1 1 9 1 2 14 Detach 6 | . . . 1 . . 5 Swap 9 | 1 1 . 1 . . 6 Drop 26 | . 7 . 3 1 1 14 Fire 103 | . 8 6 23 . 1 65 Melee 36 | . . . 29 . 1 6 Ram 12 | . 4 . 2 . . 6 Kick 2 | . . . . . . 2 Crush 8 | . . . . . . 8 Escape Stasis . | . . . . . . . Rewire . | . . . . . . . Trap . | . . . . . . . Miscellaneous . | . . . . . . . Route ------- -11/Scrapyard -10/Materials (discovered 2 exits: [*Min] / [*Sub]) -10/Subcaves (discovered 2 exits: *Mat / [*Rec]) -8/Materials -7/Factory -6/Factory -5/Factory History --------- Turn | Location | Event 2 | -11/Scrapyard | Met Revision 17 8 | -11/Scrapyard | Discovered new exit (range 14) 124 | -11/Scrapyard | Entered Materials 125 | -10/Materials | Met a group of wandering Federalists 215 | -10/Materials | Discovered new exit (range 9) 311 | -10/Materials | Build established: Mutant 368 | -10/Materials | Discovered new exit (range 3) 370 | -10/Materials | Entered Subcaves 371 | -10/Subcaves | Continued accompanying wandering Federalists (5) 412 | -10/Subcaves | Discovered new exit (range 11) 419 | -10/Subcaves | Ambushed by angry Subdweller bent on revenge 445 | -10/Subcaves | Discovered new exit (range 16) 465 | -10/Subcaves | Entered Materials 465 | -8/Materials | Evolved 4 slots: Utility x3, Weapon x1 477 | -8/Materials | Lost 5 allies 702 | -8/Materials | Lost 6 parts (1p1n1u3w) 1037 | -8/Materials | Discovered new exit (range 10) 1045 | -8/Materials | Entered Factory 1045 | -7/Factory | Evolved 2 slots: Propulsion x1, Utility x1 1123 | -7/Factory | Discovered new exit (range 5) 1128 | -7/Factory | Entered another Factory area 1128 | -6/Factory | Evolved 2 slots: Power x1, Utility x1 1156 | -6/Factory | Discovered new exit (range 12) 1180 | -6/Factory | Entered another Factory area 1180 | -5/Factory | Evolved 2 slots: Propulsion x1, Weapon x1 1261 | -5/Factory | Fabricated A-02 Transporter (x1) 1289 | -5/Factory | Build established: Scavenger-Mutant 1795 | -5/Factory | System corruption reached 10% 1928 | -5/Factory | Core integrity fell below 50% 1940 | -5/Factory | Lost 14 parts (2p3n5u4w) 1982 | -5/Factory | Garrison activated, responded to threat 2016 | -5/Factory | Core integrity fell below 20% 2190 | -5/Factory | Cargo convoy interrupted 2224 | -5/Factory | Destroyed by H-66 Slayer with Heavy Assault Rifle Last Messages --------------- Penetrated by Slug. Flexi-carbon Leg destroyed. U-05 Engineer lays Concrete. K-01 Serf collects debris. U-05 Engineer lays Concrete. Slug penetrates Wall. Slug penetrates X-77 Beamer. U-05 Engineer lays Concrete. R-10 Processor collects Corrupted Med. Matter Pod. U-05 Engineer lays Concrete. Slug penetrates Neutrino Reactor. Penetrated by Slug. Slug penetrates Wall. K-01 Serf collects debris. R-10 Processor collects Wheel. U-05 Engineer lays Concrete. Lgt. Angular Momentum Engine destroyed. Carbon-fiber Leg destroyed. Penetrated by Slug. Map ----- +----------------------------------------------------+ | ??????????????????????????????????????# " " " " " | | ??????????????????????????????????????# " " " " " | | ??????????????????????????????????????# " " " " " | | ??????????????# ??????????????????????# " "%" " " | | ??????????????# ? ???????????????????# | | ??????????????# "??????????????????# ! | | ??????????????# %#########################+#### | | ??????????????# | | ??????????????# | | ??????????????# "" R== | | ??????????????#""" % % | | ??????????????#"F R%=[! | | ??????????????#""" %##=##############+##### | | ??????????????# "" #!#"######????? ????# | | ??????????????# u*#! #???# ""?????# | | ??????????????+ u # """ #???# "T?????? | | ??????????????# % # """" #???# "??????? | | ??????????????# = # """" #???# ???????? | | ??????????????# k #! """" #???# ???????? | | ??????????????# h # """" #???#????????? | | ??????????????# xh#hh"""" #????????????? | | ??????????????# ! x# """" #????????????? | | ??????????????+ ! / #????????????? | | ??????????????# ##########????????????? | | ??????????????# #?????????????????????? | | ??????????????# @=#?????????????????????? | | ??????????????# #?????????????????????? | | ??????????????# """ """ #?????????????????????? | | ??????????????# """ """ #?????????????????????? | | ??????????????# """ """ #?????????????????????? | | ??????????????# +?????????????????????? | | ??????????????# ! #?????????????????????? | | ??????????????# ! #?????????????????????? | | ??????????????###+######## #?????????????????????? | | ?????????????????????????# #?????????????????????? | | ?????????????????????????? #?????????????????????? | | ?????????????????????????? #?????????????????????? | | ?????????????????????????? #?????????????????????? | | ?????????????????????????? #?????????????????????? | | ?????????????????????????? #?????????????????????? | | ?????????????????????????? #?????????????????????? | | ?????????????????????????? #?????????????????????? | | ??????????????????????????+#?????????????????????? | | ?????????????????????????????????????????????????? | | ?????????????????????????????????????????????????? | | ?????????????????????????????????????????????????? | | ?????????????????????????????????????????????????? | | ?????????????????????????????????????????????????? | | ?????????????????????????????????????????????????? | | ?????????????????????????????????????????????????? | +----------------------------------------------------+ Best States ------------- Heat Dissipation 59 Coolant Potential 80 Energy Generation 33 Energy Capacity 950 Matter Stores 300 Matter Capacity 300 Sight Range 22 Terrain Scan Range 14 Terrain Scan Density 210 Jamming Range 14 Armor Coverage 600 Weapon Cycling 20 Phase Shifting 5 Evasion (%) 55 Targeting Accuracy 16 Recoil Reduction 2 Item Schematics ----------------- None Robot Schematics ------------------ None Fabricated ------------ A-02 Transporter | x1 | -5/Factory | Preloaded Repaired ---------- Nothing Alien Tech Used ----------------- None Achievements -------------- None Challenges ------------ None Game ------ Seed CombatRegenerativeTerrabomb Manual? 0 Play Time 00:48:51 Cumulative 73.9 hours Start 2025.06.21 @ 00:17:00 End 2025.06.21 @ 01:09:19 Sessions 1 Manual Loads 0 Difficulty Rogue Special Mode None Game No. 46 Rogue 46 Adventurer 0 Explorer 0 Win Type - Total 0 Types 0/0/0/0/0/0/0/0/0/0 Lore% 32 Gallery% 42 Achievement% 39 Wizard Run 0 Options --------- Layout 1 ASCII 0 Keyboard 0 Movement Arrows Keybinds 0 Fullscreen 1 Font 24/Smallcaps Map View 50x35 Zoom Use 0% Tactical HUD 0 Map Filters NONE Filters NONE Steam 1 RUN: 4da3fbeb-0e14-4c1e-aded-f5ffdd32b4a0